bitfinex-derivatives/quotes_ETHF0:USTF0_20250130
["timestamp","ask_amount","ask_price","bid_price","bid_amount"]
[1738196801165,0.5538,3101.5,3101.4,0.6449]
[1738196802860,0.6449,3101.4,3101.2,0.64493]
[1738196803061,1.19868,3101.5,3101.3,0.6449]
[1738196803454,0.5538,3101.5,3101.4,0.6449]
[1738196804463,1.19868,3101.5,3101.3,0.6449]
[1738196804851,0.5538,3101.5,3101.4,0.6449]
[1738196805053,3.2078,3101.6,3101.0,1.61244]
[1738196805258,0.5249,3102.0,3101.9,0.64479]
[1738196805663,0.5249,3102.0,3101.8,0.64481]
[1738196806463,0.5249,3102.0,3101.9,0.64479]
[1738196807863,3.2078,3102.1,3102.0,0.64477]
[1738196808658,0.00483402,3102.3,3101.6,4.81995]
[1738196808864,0.00483402,3102.3,3102.2,0.64473]
[1738196809068,0.00483402,3102.3,3101.4,1.5908]
[1738196809266,3.2078,3102.2,3101.4,1.5908]
[1738196809461,0.6448,3101.9,3101.7,0.64483]
[1738196809663,0.5553,3101.8,3101.7,0.64483]
[1738196809867,0.5553,3101.8,3101.4,1.5908]
[1738196810065,0.5553,3101.8,3101.6,0.64485]
[1738196810268,0.5553,3101.8,3101.4,1.5908]
[1738196810466,1.20012,3101.8,3101.6,0.64485]
[1738196811468,0.5553,3101.8,3101.7,0.64483]
[1738196811675,0.64476,3102.1,3101.4,1.5908]
[1738196811969,3.7368,3102.2,3101.4,1.5908]
[1738196812266,3.2078,3102.2,3102.1,0.64475]
[1738196815371,0.00483402,3102.3,3101.8,3.2078]
[1738196815672,0.00483402,3102.3,3102.2,0.64473]
[1738196816265,0.64475,3102.1,3101.9,0.64478]
[1738196816569,0.64475,3102.1,3101.4,1.5908]
[1738196816570,5.87162406,3102.1,3101.4,1.5908]
[1738196816871,0.64483,3101.8,3101.6,0.64484]
[1738196817078,1.0684,3102.0,3101.4,1.5908]
[1738196817374,1.0684,3102.0,3101.4,1.0569]
[1738196817569,0.64487,3101.6,3101.4,1.70179]
[1738196817774,0.64484,3101.7,3101.5,0.64487]
[1738196817975,0.64486,3101.6,3101.5,0.64487]
[1738196818371,0.64486,3101.6,3101.4,1.0569]
[1738196818577,0.64486,3101.6,3101.4,1.70179]
[1738196818976,1.0684,3102.0,3101.5,0.64488]
[1738196819172,0.64484,3101.7,3101.5,0.64488]
[1738196819379,0.64482,3101.8,3101.4,1.0569]
[1738196819579,0.64479,3101.9,3101.6,0.64485]
[1738196819779,0.64483,3101.8,3101.6,0.64485]
[1738196820276,0.5344,3102.0,3101.4,1.0569]
[1738196820474,3.2078,3102.1,3101.5,2.66382406]
[1738196820671,0.00483402,3102.3,3102.2,0.64473]
[1738196822374,7.788,3108.0,3102.2,5.0]
[1738196822375,3.2078,3102.9,3102.2,5.0]
[1738196822580,0.5425,3103.3,3102.5,5.87162406]
[1738196822779,0.5425,3103.3,3102.3,0.5398]
[1738196822780,3.2078,3103.2,3102.3,0.5398]
[1738196822981,3.2078,3102.4,3102.0,0.5119]
[1738196823181,0.64475,3102.2,3102.0,0.5119]
[1738196823377,0.5425,3102.3,3102.0,0.5119]
[1738196823581,1.18721,3102.3,3102.1,0.64474]
[1738196824592,0.5425,3102.3,3102.1,0.64474]
[1738196825385,1.18721,3102.3,3102.1,0.64474]
[1738196825583,1.18721,3102.3,3102.1,1.17124]
[1738196825789,3.21263402,3102.4,3102.2,0.64473]
[1738196826087,0.00483402,3102.4,3102.3,0.64471]
[1738196828191,2.66382406,3103.6,3102.4,1.61173]
[1738196828390,0.64449,3103.4,3103.1,0.64453]
[1738196828693,0.64451,3103.3,3102.6,0.5504]
[1738196828890,0.64451,3103.3,3103.1,0.64454]
[1738196829394,0.64451,3103.3,3103.0,0.64455]
[1738196829595,0.64451,3103.3,3103.1,0.64454]
[1738196829896,0.64451,3103.3,3103.0,0.64455]
[1738196830691,3.8523,3103.4,3103.0,0.64455]
[1738196830992,3.2078,3103.4,3103.3,0.6445]
[1738196831796,0.00483402,3103.5,3103.4,0.64448]
[1738196831989,0.00483402,3103.5,3103.1,2.66382406]
[1738196832195,0.00483402,3103.5,3103.2,0.5422]
[1738196832395,0.00483402,3103.5,3103.4,0.64448]
[1738196839608,0.64930402,3103.5,3103.2,1.7398]
[1738196839906,0.00483402,3103.5,3103.4,0.64448]
[1738196843303,0.00483402,3103.5,3103.2,1.0953]
[1738196843497,0.00483402,3103.5,3103.3,0.64449]
[1738196843701,0.00483402,3103.5,3103.4,0.64448]
[1738196851506,0.00483402,3103.5,3103.2,1.0953]
[1738196851706,0.00483402,3103.5,3103.3,0.6445]
[1738196851907,0.64448,3103.4,3103.3,0.6445]
[1738196852416,0.00483402,3103.5,3103.3,0.6445]
[1738196852711,0.00483402,3103.5,3103.4,0.64448]
[1738196854613,0.64929402,3103.5,3103.4,0.64448]
[1738196854812,0.00483402,3103.5,3103.4,0.64448]
[1738196856606,3.2078,3104.2,3103.4,7.66382406]
[1738196856806,0.5109,3104.4,3104.3,0.64429]
[1738196857202,3.2078,3104.6,3104.5,0.64425]
[1738196857402,4.07982406,3105.1,3105.0,0.64415]
[1738196857403,3.2078,3105.1,3105.0,0.64415]
[1738196857614,3.2078,3105.1,3103.9,1.614]
[1738196857615,1.0631,3105.5,3104.6,5.87162406]
[1738196857917,0.00483402,3105.4,3104.7,1.06393402]
[1738196858113,0.00483402,3105.4,3105.2,0.64409]
[1738196858811,0.00483402,3105.4,3104.7,1.60673402]
[1738196859316,0.64891402,3105.4,3105.1,0.64411]
[1738196859618,0.00483402,3105.4,3105.2,0.64409]
[1738196859811,0.00483402,3105.4,3104.7,1.60673402]
[1738196860008,0.00483402,3105.4,3105.2,0.6441]
[1738196860209,0.00483402,3105.4,3104.7,1.60673402]
[1738196860705,0.00483402,3105.4,3105.2,0.64411]
[1738196862110,0.00483402,3105.4,3105.3,0.64409]
[1738196863106,0.00483402,3105.4,3105.3,3.30791406]
[1738196863519,1.65737,3105.9,3105.3,2.66382406]
[1738196863814,0.61164011,3106.0,3105.6,2.66382406]
[1738196864005,0.61164011,3106.0,3105.9,0.64396]
[1738196864315,19.51164011,3106.0,3105.9,0.64396]
[1738196864515,19.51164011,3106.0,3105.6,2.66382406]
[1738196864911,0.61164011,3106.0,3105.6,2.66382406]
[1738196865113,0.61164011,3106.0,3105.8,0.64398]
[1738196865818,0.61164011,3106.0,3105.6,2.66382406]
[1738196866017,0.61164011,3106.0,3105.9,0.64396]
[1738196866603,0.00317022,3106.1,3106.0,0.64394]
[1738196866809,0.00317022,3106.1,3106.0,1.16144]
[1738196870320,0.00317022,3106.1,3105.9,3.2078]
[1738196870513,0.64394,3106.0,3105.9,3.2078]
[1738196870822,1.17734,3106.0,3105.9,3.2078]
[1738196871615,3.84116406,3106.0,3105.9,3.2078]
[1738196872519,3.19722406,3106.0,3105.2,0.6441]
[1738196872717,3.2078,3105.9,3105.1,3.2078]
[1738196872917,3.2078,3105.9,3105.1,3.85192]
[1738196873117,0.64406,3105.5,3105.2,0.6441]
[1738196873809,0.64406,3105.5,3105.1,3.2078]
[1738196873810,0.64398,3105.8,3105.3,0.64407]
[1738196874017,0.64404,3105.6,3105.3,0.64407]
[1738196875524,0.5459,3105.7,3105.1,3.2078]
[1738196875715,1.18991,3105.7,3105.4,0.64406]
[1738196877214,0.64403,3105.6,3105.4,0.64406]
[1738196877619,1.18991,3105.7,3105.4,0.64406]
[1738196878524,0.64403,3105.6,3105.3,0.64408]
[1738196878725,0.64405,3105.5,3105.3,0.64408]
[1738196879121,0.64403,3105.6,3105.4,0.64407]
[1738196879320,1.18992,3105.7,3105.4,0.64407]
[1738196879622,0.64403,3105.6,3105.4,0.64407]
[1738196879929,0.5459,3105.7,3105.5,0.64403]
[1738196880421,0.5459,3105.7,3105.6,0.64403]
[1738196880827,0.5334,3106.0,3105.9,0.64396]
[1738196881030,0.00523893,3106.1,3106.0,0.64394]
[1738196884618,0.00523893,3106.1,3105.9,5.87162406]
[1738196884925,0.00523893,3106.1,3106.0,0.64394]
[1738196885319,0.00523893,3106.1,3105.9,3.2078]
[1738196885520,0.00523893,3106.1,3105.3,3.7275]
[1738196885521,0.64403,3105.6,3105.3,3.7275]
[1738196885824,0.64396,3105.9,3105.6,0.64402]
[1738196886128,0.64399,3105.8,3105.6,0.64402]
[1738196886626,18.9,3105.9,3105.3,3.7275]
[1738196886928,0.64405,3105.5,3105.3,4.37158]
[1738196887132,0.64404,3105.6,3105.4,0.64407]
[1738196887525,0.64403,3105.6,3105.4,0.64407]
[1738196887726,0.64404,3105.6,3105.4,0.64407]
[1738196887924,0.64398,3105.8,3105.4,0.64407]
[1738196888120,0.64404,3105.6,3105.4,0.64407]
[1738196889133,0.64405,3105.5,3105.3,3.85188]
[1738196889331,0.64407,3105.4,3105.3,3.2078]
[1738196889627,0.64409,3105.3,3105.0,0.64413]
[1738196889822,0.5231,3105.2,3105.1,0.64412]
[1738196891834,0.64413,3105.1,3104.9,0.64416]
[1738196892929,0.5231,3105.2,3104.8,3.2078]
[1738196892930,0.64417,3104.9,3104.8,3.2078]
[1738196894831,8.2078,3104.9,3103.4,3.2078]
[1738196895033,3.2078,3103.8,3103.1,1.0711]
[1738196895532,21.56382406,3103.7,3103.1,1.0711]
[1738196895832,18.9,3103.7,3103.4,0.64448]
[1738196896229,18.90483402,3103.7,3103.4,0.64448]
[1738196897235,19.54926402,3103.7,3103.4,0.64448]
[1738196897737,0.64444,3103.6,3103.1,0.64936402]
[1738196897936,0.64446,3103.6,3103.2,0.64452]
[1738196898135,18.90483402,3103.7,3103.1,0.00483402]
[1738196898336,18.90483402,3103.7,3103.5,0.64446]
[1738196898834,0.00483402,3103.7,3103.4,5.87162406]
[1738196899025,3.2078,3104.6,3103.4,5.87162406]
[1738196899231,0.64421,3104.7,3104.4,0.64427]
[1738196899434,0.64421,3104.7,3104.5,0.5004]
[1738196899634,0.5258,3105.0,3104.5,0.5004]
[1738196899931,0.64421,3104.7,3104.5,0.5004]
[1738196900331,0.64423,3104.6,3104.5,0.5004]
[1738196900526,2.66382406,3104.9,3104.2,0.5157]
[1738196900933,0.64424,3104.6,3104.3,0.64428]
[1738196901741,0.64424,3104.6,3104.2,1.16001]
[1738196902033,0.64422,3104.7,3104.3,0.64429]
[1738196902232,3.2078,3104.7,3104.2,0.5422]
[1738196902427,0.64427,3104.5,3104.2,0.5422]
[1738196903543,3.2078,3104.7,3104.1,0.5323]
[1738196903842,0.64434,3104.1,3104.0,3.2078]
[1738196904140,0.64433,3104.2,3104.0,3.2078]
[1738196904341,0.64434,3104.1,3104.0,3.2078]
[1738196904636,3.2078,3104.7,3104.0,3.2078]
[1738196904637,3.2078,3104.7,3104.6,0.64423]
[1738196904940,3.2078,3104.7,3104.0,3.2078]
[1738196905145,3.2078,3104.7,3104.5,0.64425]
[1738196905637,0.6443,3104.3,3104.0,3.85215]
[1738196905839,0.6443,3104.3,3104.0,3.2078]
[1738196906139,0.64428,3104.4,3104.1,0.64433]
[1738196906629,3.7457,3104.7,3104.1,0.64433]
[1738196906827,0.64429,3104.4,3104.1,0.64433]
[1738196907237,0.64429,3104.4,3103.9,0.5366]
[1738196907438,0.64429,3104.4,3104.2,0.64431]
[1738196907640,3.7457,3104.7,3103.9,0.5366]
[1738196907841,0.64429,3104.4,3104.1,0.64433]
[1738196908436,0.64429,3104.4,3104.2,0.64431]
[1738196908648,0.64429,3104.4,3104.1,0.64432]
[1738196909340,3.7457,3104.7,3103.9,0.5366]
[1738196909541,0.64425,3104.5,3103.9,1.18097]
[1738196909740,0.64433,3104.2,3103.9,1.18097]
[1738196909945,0.64431,3104.3,3104.0,0.64435]
[1738196910142,0.5506,3104.4,3103.9,0.5366]
[1738196910441,0.64431,3104.3,3104.0,0.64434]
[1738196910646,0.64431,3104.3,3103.9,0.5366]
[1738196910948,0.64431,3104.3,3104.1,0.64433]
[1738196911337,0.5506,3104.4,3104.2,0.64431]
[1738196911533,1.19488,3104.4,3104.2,0.6443]
[1738196911737,0.5506,3104.4,3104.2,0.6443]
[1738196912935,1.19488,3104.4,3104.2,0.6443]
[1738196913342,0.5506,3104.4,3104.2,0.6443]
[1738196913646,1.19488,3104.4,3104.1,0.64432]
[1738196914146,1.19488,3104.4,3103.9,0.5366]
[1738196914348,1.19488,3104.4,3104.2,0.64431]
[1738196915348,6.55088,3104.4,3104.1,0.64432]
[1738196915543,0.64431,3104.3,3104.0,0.64435]
[1738196915743,1.19489,3104.4,3104.1,0.64432]
[1738196916051,1.19489,3104.4,3103.9,0.5366]
[1738196916543,0.6443,3104.3,3104.0,0.64434]
[1738196916750,0.64428,3104.4,3104.1,0.64432]
[1738196917248,3.7457,3104.7,3103.9,0.5366]
[1738196917450,0.64426,3104.5,3104.2,0.64431]
[1738196918148,0.64429,3104.4,3104.1,0.64433]
[1738196918450,9.1017,3104.7,3103.9,0.5366]
[1738196918751,9.1017,3104.7,3104.0,0.64435]
[1738196919051,0.64431,3104.3,3104.0,0.64435]
[1738196919246,0.64429,3104.4,3104.1,0.64432]
[1738196919653,0.64426,3104.5,3104.2,0.6443]
[1738196920150,0.64426,3104.5,3103.9,0.5366]
[1738196920351,0.64426,3104.5,3104.3,0.64429]
[1738196921147,9.1017,3104.7,3103.9,0.5366]
[1738196921354,0.64424,3104.6,3103.9,0.5366]
[1738196921651,0.64424,3104.6,3104.3,0.64428]
[1738196922657,3.85204,3104.6,3104.3,0.64428]
[1738196924051,3.85204,3104.6,3104.4,0.64426]
[1738196924455,0.64421,3104.7,3104.5,0.64425]
[1738196924757,0.00317022,3105.1,3105.0,0.64415]
[1738196927161,0.00317022,3105.1,3104.7,4.85053402]
[1738196927364,0.55307022,3105.1,3104.7,1.10103402]
[1738196927558,0.55307022,3105.1,3104.8,0.64418]
[1738196927559,1.19722022,3105.1,3104.8,0.64418]
[1738196927863,0.64415,3105.0,3104.8,0.64418]
[1738196928462,0.64415,3105.0,3104.7,1.74522402]
[1738196928663,0.64415,3105.0,3104.8,0.64419]
[1738196928961,0.55307022,3105.1,3104.7,1.10103402]
[1738196929266,0.64731022,3105.1,3104.9,0.64416]
[1738196929560,0.00317022,3105.1,3104.7,1.10103402]
[1738196930061,0.64419,3104.8,3104.7,0.00483402]
[1738196930656,19.54419,3104.8,3104.7,0.00483402]
[1738196931263,0.64419,3104.8,3104.7,0.00483402]
[1738196931858,1.14529,3104.8,3104.7,0.00483402]
[1738196932161,4.35309,3104.8,3104.7,0.00483402]
[1738196933169,14.70909,3104.8,3104.7,0.00483402]
[1738196933361,14.70909,3104.8,3104.7,0.00247699]
[1738196933561,14.70909,3104.8,3104.7,0.0008255]
[1738196934067,9.70909,3104.8,3104.7,0.0008255]
[1738196935967,9.96300937,3104.8,3104.7,0.0008255]
[1738196936362,14.96300937,3104.8,3104.7,0.0008255]
[1738196938673,9.96300937,3104.8,3104.7,0.0008255]
[1738196941172,14.96300937,3104.8,3104.7,0.0008255]
[1738196941377,14.96300937,3104.8,3104.7,2.55e-05]
[1738196941770,0.64434,3104.2,3103.9,1.18647]
[1738196942080,0.6443,3104.3,3104.1,0.64433]
[1738196942375,0.64429,3104.4,3104.1,0.64433]
[1738196942874,0.64427,3104.4,3104.1,0.64433]
[1738196943377,0.6443,3104.3,3104.1,0.64433]
[1738196944572,0.6443,3104.3,3103.9,0.54693402]
[1738196944573,6.37272406,3104.8,3103.9,0.54693402]
[1738196944765,1.424,3104.7,3104.1,2.66382406]
[1738196944970,1.424,3104.7,3104.6,0.64423]
[1738196946080,1.424,3104.7,3104.1,2.66382406]
[1738196946379,1.424,3104.7,3104.5,0.64424]
[1738196946571,1.424,3104.7,3104.1,2.66382406]
[1738196946572,1.424,3104.7,3104.6,2.19153]
[1738196947780,1.424,3104.7,3104.6,1.5473]
[1738196948290,2.06821,3104.7,3104.6,1.0441]
[1738196948478,2.06821,3104.7,3104.2,1.0519]
[1738196948479,0.64429,3104.3,3104.2,1.0519]
[1738196951781,2.66382406,3104.5,3104.2,1.0519]
[1738196951977,0.64425,3104.5,3104.3,0.64428]
[1738196952183,2.06822,3104.7,3104.5,0.64424]
[1738196954384,0.64422,3104.7,3104.5,0.64424]
[1738196955276,0.64428,3104.4,3104.2,1.6962]
[1738196955471,0.64427,3104.4,3104.2,1.6962]
[1738196956177,3.85207,3104.4,3104.2,1.6962]
[1738196956885,3.85207,3104.4,3104.3,0.64429]
[1738196956886,3.2078,3104.4,3104.3,0.64429]
[1738196957885,3.85207,3104.4,3104.3,0.64429]
[1738196958287,3.2078,3104.4,3104.3,0.64429]
[1738196959083,0.64426,3104.5,3104.3,0.64429]
[1738196959283,5.87162406,3104.8,3104.4,0.64427]
[1738196959582,0.64427,3104.4,3104.3,0.64429]
[1738196959784,0.64426,3104.5,3104.3,0.64429]
[1738196959983,5.87162406,3104.8,3104.2,1.0519]
[1738196960184,0.64422,3104.7,3104.5,0.64424]
[1738196963085,3.2078,3104.8,3104.7,0.64421]
[1738196963390,3.2078,3104.8,3104.2,1.0519]
[1738196963789,0.64426,3104.5,3104.3,0.64429]
[1738196964591,0.64426,3104.5,3104.4,0.64427]
[1738196965487,0.64426,3104.5,3104.2,1.0519]
[1738196965689,0.64426,3104.5,3104.3,0.64428]
[1738196967394,0.64426,3104.5,3104.4,0.64427]
[1738196967893,0.64424,3104.6,3104.4,0.64427]
[1738196968489,0.64425,3104.5,3104.4,0.64427]
[1738196968890,3.2078,3104.7,3104.4,0.64427]
[1738196969197,0.64424,3104.6,3104.4,0.64427]
[1738196970290,0.64424,3104.6,3104.3,0.64429]
[1738196970490,0.64424,3104.6,3104.4,0.64426]
[1738196973397,0.64429,3104.3,3104.2,1.6962]
[1738196973598,0.64427,3104.4,3104.0,3.2078]
[1738196973912,2.66382406,3104.5,3104.0,3.2078]
[1738196973913,0.64433,3104.2,3104.0,3.2078]
[1738196974098,0.64433,3104.2,3103.9,0.00483402]
[1738196974099,0.64433,3104.2,3104.1,0.64434]
[1738196974301,0.5121,3104.3,3104.1,0.64434]
[1738196974500,1.1564,3104.3,3104.1,0.64434]
[1738196975201,0.6443,3104.3,3104.2,0.64432]
[1738196975499,8.5638,3104.7,3104.5,0.64424]
[1738196975500,3.85202,3104.7,3104.5,0.64424]
[1738196975708,0.64423,3104.6,3104.5,0.64424]
[1738196975894,3.85202,3104.7,3104.5,0.64424]
[1738196976301,3.85202,3104.7,3104.6,1.0829]
[1738196980308,3.85202,3104.7,3103.9,3.21263402]
[1738196980309,0.64424,3104.6,3103.9,3.21263402]
[1738196980500,0.64424,3104.6,3104.3,0.64428]
[1738196980802,3.2078,3104.7,3104.1,0.5492]
[1738196981108,0.64432,3104.2,3104.1,0.5492]
[1738196981405,0.64431,3104.3,3104.1,1.19353]
[1738196981805,0.64432,3104.2,3104.1,1.19353]
[1738196982512,0.64434,3104.1,3103.9,0.00483402]
[1738196982699,0.64436,3104.0,3103.9,0.00483402]
[1738196983806,0.64436,3104.0,3103.9,0.64921402]
[1738196984405,0.64436,3104.0,3103.9,0.00483402]
[1738196984808,0.64436,3104.0,3103.9,0.64921402]
[1738196985814,0.64436,3104.0,3103.9,0.00483402]
[1738196986118,0.64436,3104.0,3103.9,0.64921402]
[1738196986819,0.64436,3104.0,3103.9,0.00483402]
[1738196989717,0.64436,3104.0,3103.9,0.64921402]
[1738196992821,1.17295,3104.1,3103.9,0.00483402]
[1738196993021,0.64435,3104.1,3104.0,0.64436]
[1738196993717,3.7548,3104.4,3103.9,0.00483402]
[1738196993915,0.64436,3104.0,3103.9,0.00483402]
[1738196994422,0.64429,3104.3,3104.1,0.64433]
[1738196994723,3.2078,3104.4,3104.0,0.5179]
[1738196994922,0.64432,3104.2,3104.1,1.17893]
[1738196995523,0.6443,3104.3,3104.1,1.17893]
[1738196995725,3.2078,3104.4,3104.1,1.17893]
[1738196995917,0.6443,3104.3,3104.1,1.17893]
[1738196998627,3.2078,3104.4,3104.3,0.64429]
[1738196999626,5.267,3104.8,3104.6,0.64423]
[1738196999815,5.267,3104.8,3104.2,0.5364]
[1738196999816,5.267,3104.8,3104.7,0.5541]
[1738197000428,3.2078,3104.8,3104.7,1.19831]
[1738197000619,2.66699428,3105.1,3105.0,0.64415]
[1738197000620,0.00317022,3105.1,3105.0,0.64415]
[1738197001318,0.00317022,3105.1,3104.8,1.0546]
[1738197001519,1.61038,3105.0,3103.8,5.87162406]
[1738197001720,0.6443,3104.3,3104.1,0.64432]
[1738197001919,5.87162406,3104.8,3104.0,0.5303]
[1738197002129,0.64426,3104.5,3104.2,0.6443]
[1738197002622,2.66382406,3104.5,3104.0,0.5303]
[1738197002818,0.4519,3104.4,3103.9,1.08323402]
[1738197003015,0.64431,3104.3,3104.0,0.64435]
[1738197003221,0.64435,3104.1,3103.9,1.08323402]
[1738197003616,0.64435,3104.1,3103.9,1.72761402]
[1738197004229,0.64431,3104.3,3104.0,0.64434]
[1738197004726,3.6597,3104.4,3103.9,1.08323402]
[1738197004932,0.64431,3104.3,3104.0,0.64434]
[1738197005134,3.2078,3104.4,3104.3,0.64429]
[1738197005826,3.2078,3104.4,3104.2,0.64431]
[1738197006025,3.85209,3104.4,3104.2,0.42426864]
[1738197006429,3.2078,3104.4,3104.3,0.64429]
[1738197008633,3.2078,3104.4,3104.1,0.5448]
[1738197008936,1.0549,3104.3,3104.2,0.64432]
[1738197009122,3.2078,3104.4,3104.3,0.64429]
[1738197009825,0.6443,3104.3,3104.1,1.18913]
[1738197010026,0.64432,3104.2,3104.1,0.5448]
[1738197010629,1.1658,3104.3,3104.1,1.18913]
[1738197010837,0.6443,3104.3,3104.1,1.18913]
[1738197011232,3.2078,3104.4,3104.1,1.18913]
[1738197011427,0.64432,3104.2,3104.1,1.18913]
[1738197011935,0.64432,3104.2,3104.1,0.5448]
[1738197012133,3.2078,3104.4,3104.1,0.5448]
[1738197012737,0.64432,3104.2,3104.1,0.5448]
[1738197012936,0.64434,3104.1,3104.0,0.00483402]
[1738197013136,3.2078,3104.4,3104.0,0.00257877]
[1738197013335,0.64432,3104.2,3104.0,0.64691877]
[1738197013837,3.2078,3104.4,3104.0,0.00257877]
[1738197014037,3.2078,3104.4,3104.3,0.64429]
[1738197015233,3.2078,3104.4,3104.0,0.00257877]
[1738197015433,3.2078,3104.4,3104.3,0.64429]
[1738197018245,0.00317022,3105.1,3104.2,3.2078]
[1738197018442,0.00317022,3105.1,3105.0,3.30797406]
[1738197018932,5.87162406,3106.0,3105.0,2.66382406]
[1738197019134,0.64407,3105.4,3105.0,0.64415]
[1738197019436,2.66382406,3105.7,3105.3,0.64409]
[1738197019437,0.64405,3105.5,3105.3,0.64409]
[1738197019633,0.64405,3105.5,3104.9,1.0672]
[1738197020037,0.64888402,3105.5,3105.2,0.64409]
[1738197021039,0.00483402,3105.5,3104.9,1.0672]
[1738197021237,0.64412,3105.2,3104.9,1.0672]
[1738197021442,0.64415,3105.0,3104.9,0.5182]
[1738197021838,1.15073,3105.1,3104.9,0.5182]
[1738197022449,2.66382406,3105.4,3104.9,0.5182]
[1738197022740,0.64412,3105.2,3104.9,0.64416]
[1738197022939,0.64413,3105.1,3104.9,0.64416]
[1738197023340,0.64409,3105.3,3105.0,0.64413]
[1738197023741,3.17042406,3105.4,3105.1,0.5495]
[1738197023940,0.64411,3105.2,3105.1,0.5495]
[1738197025151,3.17042406,3105.4,3105.1,0.5495]
[1738197025446,3.17042406,3105.4,3104.8,0.64418]
[1738197025748,0.64415,3105.1,3104.8,0.64418]
[1738197026542,0.64415,3105.1,3104.6,0.5393]
[1738197026543,0.64421,3104.7,3104.6,0.5393]
[1738197026747,5.87162406,3104.8,3104.1,0.64434]
[1738197026944,0.64434,3104.2,3104.0,0.00257877]
[1738197027146,2.66382406,3104.5,3104.0,0.00257877]
[1738197027350,0.6443,3104.3,3104.0,0.00257877]
[1738197027547,0.6443,3104.3,3104.0,0.64691877]
[1738197027751,0.6443,3104.3,3104.1,0.64433]
[1738197027951,2.66382406,3104.5,3104.3,0.64429]
[1738197027952,0.64426,3104.5,3104.3,0.64429]
[1738197028148,1.0935,3104.7,3104.0,0.00257877]
[1738197028652,0.64434,3104.1,3104.0,0.00257877]
[1738197028856,0.64432,3104.2,3104.0,0.00257877]
[1738197029153,0.64434,3104.1,3104.0,0.00257877]
[1738197029540,3.2078,3104.4,3104.0,0.64693877]
[1738197029746,3.2078,3104.4,3104.2,0.6443]
[1738197029945,3.2078,3104.4,3104.0,0.00257877]
[1738197030347,3.2078,3104.4,3104.2,0.64431]
[1738197030546,3.2078,3104.4,3104.3,0.64429]
[1738197030845,3.852,3104.8,3104.6,0.64422]
[1738197031053,3.85199,3104.8,3104.7,0.5492]
[1738197031356,3.85199,3104.8,3104.0,2.66640283]
[1738197031357,0.64423,3104.7,3104.4,0.64426]
[1738197031545,3.852,3104.8,3104.5,0.64425]
[1738197031743,1.1987,3104.8,3104.5,0.64425]
[1738197032249,0.5545,3104.8,3104.2,3.2078]
[1738197032452,1.16048,3104.9,3104.7,0.64421]
[1738197033049,0.64421,3104.8,3104.5,0.64424]
[1738197033254,0.5163,3104.9,3104.3,1.0503]
[1738197033555,0.64426,3104.5,3104.3,1.15769]
[1738197034142,0.64427,3104.4,3104.2,0.6443]
[1738197037852,0.64426,3104.5,3104.3,0.64429]
[1738197038053,3.852,3104.8,3104.6,0.64422]
[1738197038243,0.64423,3104.7,3104.4,0.64426]
[1738197038448,0.64423,3104.7,3104.5,0.64424]
[1738197039853,3.2078,3104.8,3104.1,0.5492]
[1738197040155,0.64422,3104.7,3104.5,0.64424]
[1738197040950,3.85201,3104.8,3104.5,0.64424]
[1738197041355,0.64422,3104.7,3104.5,0.64424]
[1738197041958,3.85201,3104.8,3104.1,0.5492]
[1738197042256,3.2078,3104.8,3104.1,0.5492]
[1738197042457,3.2078,3104.8,3104.7,0.64421]
[1738197042962,0.64419,3104.9,3104.7,0.64421]
[1738197043155,0.64419,3104.8,3104.6,0.64423]
[1738197043456,0.64419,3104.9,3104.6,0.64422]
[1738197043854,0.64419,3104.8,3104.6,0.64422]
[1738197044057,9.067,3105.2,3104.3,5.87162406]
[1738197044058,3.2078,3105.2,3104.3,5.87162406]
[1738197044255,3.85192,3105.2,3105.0,0.64414]
[1738197045655,3.85192,3105.2,3105.1,0.5242]
[1738197045854,3.2078,3105.2,3104.5,0.5376]
[1738197046060,0.64424,3104.6,3104.4,0.64426]
[1738197046359,0.64426,3104.5,3104.3,3.85208]
[1738197046559,0.64426,3104.5,3104.3,0.64429]
[1738197047257,3.2078,3104.8,3104.1,1.5886]
[1738197047458,3.85201,3104.8,3104.6,0.64422]
[1738197047648,3.2078,3104.8,3104.0,2.66640283]
[1738197047853,0.64426,3104.5,3104.0,0.52677877]
[1738197048057,5.87162406,3104.8,3104.4,0.64427]
[1738197048256,3.2078,3104.8,3104.1,0.5303]
[1738197048456,3.852,3104.8,3104.6,0.64422]
[1738197048859,5.87162406,3104.8,3104.0,0.00257877]
[1738197049063,0.64426,3104.5,3104.3,0.64428]
[1738197049252,0.64426,3104.5,3104.1,1.0496]
[1738197049253,5.87162406,3104.8,3104.1,1.0496]
[1738197049454,1.68288,3104.4,3104.1,1.0496]
[1738197049663,1.68288,3104.4,3104.2,0.6443]
[1738197050650,0.64429,3104.3,3104.2,0.6443]
[1738197050848,1.0386,3104.4,3104.1,0.536]
[1738197051163,0.64434,3104.1,3104.0,0.00257877]
[1738197051362,0.64434,3104.1,3104.0,0.64693877]
[1738197051656,0.64434,3104.1,3104.0,0.00257877]
[1738197052158,6.00034,3104.1,3104.0,0.00257877]
[1738197054253,8.5638,3104.8,3104.0,0.00257877]
[1738197054454,8.5638,3104.8,3104.0,0.53717877]
[1738197054758,0.64421,3104.7,3104.4,0.64426]
[1738197054963,8.5638,3104.8,3104.0,0.53717877]
[1738197055158,0.64426,3104.5,3104.3,0.64429]
[1738197055558,0.64429,3104.4,3104.1,0.64432]
[1738197055861,0.64429,3104.4,3104.2,0.64431]
[1738197056062,0.64429,3104.4,3104.1,0.64434]
[1738197056258,0.64426,3104.5,3104.2,0.64431]
[1738197056657,0.64427,3104.4,3104.2,0.64431]
[1738197056858,0.64427,3104.4,3104.1,0.64433]
[1738197057158,8.01982406,3104.6,3104.2,0.6443]